lending/lending_fUSD_20251218
["ID","MTS","AMOUNT","RATE_DAILY","PERIOD"]
[398952511,1766017847937,-254.09107,0.00032877,31]
[398952512,1766017847947,-254.09107,0.00032877,31]
[398952513,1766017847957,-151.0,0.00032877,31]
[398952514,1766017847966,-151.0,0.00032877,31]
[398952515,1766017847976,-151.0,0.00032877,31]
[398952516,1766017847985,-250.024534,0.00032877,31]
[398952517,1766017847995,-151.0,0.00032877,31]
[398952518,1766017848004,-151.0,0.00032877,31]
[398952519,1766017848014,-151.0,0.00032877,31]
[398952520,1766017848023,-151.0,0.00032877,31]
[398952521,1766017848033,-151.0,0.00032877,31]
[398952522,1766017848042,-268.367658,0.00032877,31]
[398952523,1766017848052,-151.0,0.00032877,31]
[398952524,1766017848061,-151.0,0.00032877,31]
[398952525,1766017848071,-151.0,0.00032877,31]
[398952526,1766017848080,-151.0,0.00032877,31]
[398952527,1766017848090,-151.0,0.00032877,31]
[398952528,1766017848103,-151.0,0.00032877,31]
[398952529,1766017848112,-151.0,0.00032877,31]
[398952530,1766017848122,-171.04,0.000329,14]
[398952531,1766017848131,-416.99,0.000329,14]
[398952532,1766017848142,-1000.0,0.000329,7]
[398952533,1766017848151,-268.83,0.000329,2]
[398952534,1766017848160,-150.0,0.00033,14]
[398952535,1766017848171,-1000.0,0.00033,30]
[398952536,1766017848181,-828.02,0.00033165,2]
[398952537,1766017848191,-154.94265547,0.00033781,21]
[398952538,1766017848201,-193.71,0.000338,30]
[398952539,1766017848210,-1000.0,0.00034,30]
[398952540,1766017848220,-157.61043643,0.00034038,2]
[398952541,1766017848231,-199195.5547384,0.000343,2]
[398952542,1766017848243,-1000.0,0.000343,7]
[398952543,1766017848253,-927.58,0.00034327,30]
[398952544,1766017848263,-232.76374263,0.00034563,2]
[398952545,1766017848273,-171.04,0.00035,14]
[398952546,1766017848283,-416.99,0.00035,14]
[398952547,1766017848293,-1000.0,0.00035,30]
[398952548,1766017848303,-1012.80066387,0.0003502,2]
[398952549,1766017848313,-2000.0,0.000355,2]
[398952550,1766017848323,-268.83,0.000355,2]
[398952551,1766017848335,-336.0,0.00035616,117]
[398952552,1766017848346,-581.1,0.00035616,105]
[398952553,1766017848357,-516.6,0.00035616,101]
[398952554,1766017848367,-333.6,0.00035616,87]
[398952555,1766017848376,-151.0,0.00035616,31]
[398952556,1766017848385,-151.0,0.00035616,31]
[398952557,1766017848395,-1000.0,0.000357,7]
[398952558,1766017848404,-2000.0,0.00035803,120]
[398952559,1766017848414,-800.39550907,0.00036,3]
[398952560,1766017848424,-1000.0,0.00036,30]
[398952561,1766017848434,-1845.45710925,0.00036539,2]
[398952562,1766017848445,-3348.89,0.000368,120]
[398952563,1766017848455,-1000.0,0.00037,30]
[398952564,1766017848464,-193.71,0.000371,30]
[398952565,1766017848475,-1283.0,0.000371,7]
[398952566,1766017848484,-381.55175987,0.00037403,2]
[398952567,1766017848495,-5476.0,0.000378,117]
[398952568,1766017848505,-268.83,0.000378,2]
[398952569,1766017848516,-1000.0,0.00038,30]
[398952570,1766017848526,-500.0,0.00038023,120]
[398952571,1766017848536,-157.61043643,0.00038245,2]
[398952572,1766017848547,-150.0,0.00038293,7]
[398952573,1766017848557,-182.8828485,0.00038293,7]
[398952574,1766017848567,-150.0,0.00038293,7]
[398952575,1766017848576,-150.0,0.00038293,7]
[398952576,1766017848585,-150.0,0.00038293,7]
[398952577,1766017848595,-150.0,0.00038293,7]
[398952578,1766017848604,-150.0,0.00038293,7]
[398952579,1766017848613,-150.0,0.00038293,7]
[398952580,1766017848623,-150.0,0.00038293,7]
[398952581,1766017848633,-150.0,0.00038293,7]
[398952582,1766017848642,-150.0,0.00038293,7]
[398952583,1766017848652,-150.0,0.00038293,7]
[398952584,1766017848661,-150.0,0.00038293,7]
[398952585,1766017848670,-4565.88,0.00038356,120]
[398952586,1766017848680,-151.0,0.00038356,120]
[398952587,1766017848689,-1680.49913159,0.00038477,5]
[398952588,1766017848698,-150.0,0.00038478,7]
[398952589,1766017848707,-171.04,0.000385,14]
[398952590,1766017848716,-416.99,0.000385,14]
[398952591,1766017848725,-150.0,0.00038559,7]
[398952592,1766017848734,-150.0,0.00038663,7]
[398952593,1766017848743,-4568.09880057,0.000387,14]
[398952594,1766017848752,-150.0,0.00038719,7]
[398952595,1766017848761,-150.0,0.00038719,7]
[398952596,1766017848770,-1012.80066387,0.00038735,2]
[398952597,1766017848780,-700.0,0.0003877,2]
[398952598,1766017848789,-150.0,0.00038825,7]
[398952599,1766017848798,-150.0,0.00038848,7]
[398952600,1766017848807,-232.76374263,0.000389,2]
[398952601,1766017848816,-2000.0,0.00038969,120]
[398952602,1766017848826,-700.0,0.0003897,2]
[398952603,1766017848835,-700.0,0.0003897,2]
[398952604,1766017848845,-500.0,0.0003897,2]
[398952605,1766017848855,-700.0,0.0003897,2]
[398952606,1766017848864,-464.18,0.00038972,2]
[398952607,1766017848874,-464.18,0.00038972,2]
[398952608,1766017848883,-150.43,0.00038972,2]
[398952609,1766017848893,-1805694.23325489,0.00039,2]
[398952610,1766017848902,-1000.0,0.00039,30]
[398952611,1766017848912,-151.0,0.00039,120]
[398952612,1766017848921,-235.312065,0.00039,120]
[398952613,1766017848931,-151.0,0.00039,120]
[398952614,1766017848940,-151.0,0.00039,120]
[398952615,1766017848949,-151.0,0.00039,120]
[398952616,1766017848958,-151.0,0.00039,120]
[398952617,1766017848968,-151.0,0.00039,120]
[398952618,1766017848977,-151.0,0.00039,120]
[398952619,1766017848986,-151.0,0.00039,120]
[398952620,1766017848996,-151.0,0.00039,120]
[398952621,1766017849005,-151.0,0.00039,120]
[398952622,1766017849014,-151.0,0.00039,120]
[398952623,1766017849023,-201.948617,0.00039,120]
[398952624,1766017849032,-151.0,0.00039,60]
[398952625,1766017849041,-151.0,0.00039,60]
[398952626,1766017849050,-151.0,0.00039,120]
[398952627,1766017849060,-173.90265,0.00039,120]
[398952628,1766017849069,-207.032753,0.00039,120]
[398952629,1766017849079,-151.0,0.00039,14]
[398952630,1766017849088,-151.0,0.00039,120]
[398952631,1766017849099,-151.0,0.00039,120]
[398952632,1766017849110,-254.09107,0.00039,120]
[398952633,1766017849120,-254.09107,0.00039,120]
[398952634,1766017849129,-254.09107,0.00039,120]
[398952635,1766017849139,-254.09107,0.00039,120]
[398952636,1766017849149,-151.0,0.00039,120]
[398952637,1766017849158,-279.4539,0.00039,120]
[398952638,1766017849167,-151.0,0.00039,120]
[398952639,1766017849179,-151.0,0.00039,120]
[398952640,1766017849188,-151.0,0.00039,120]
[398952641,1766017849198,-151.0,0.00039,120]
[398952642,1766017849207,-151.0,0.00039,120]
[398952643,1766017849216,-151.480928,0.00039,120]
[398952644,1766017849225,-151.0,0.00039,120]
[398952645,1766017849235,-151.0,0.00039,120]
[398952646,1766017849244,-151.0,0.00039,120]
[398952647,1766017849253,-151.0,0.00039,120]
[398952648,1766017849262,-151.0,0.00039,120]
[398952649,1766017849271,-151.0,0.00039,120]
[398952650,1766017849280,-151.0,0.00039,120]
[398952651,1766017849290,-151.0,0.00039,120]
[398952652,1766017849450,-151.0,0.00039,120]
[398952653,1766017849459,-151.0,0.00039,2]
[398952654,1766017849469,-151.0,0.00039,120]
[398952655,1766017849478,-289.164392,0.00039,120]
[398952656,1766017849487,-151.0,0.00039,120]
[398952657,1766017849496,-151.0,0.00039,120]
[398952658,1766017849505,-151.0,0.00039,120]
[398952659,1766017849514,-151.0,0.00039,120]
[398952660,1766017849523,-151.0,0.00039,120]
[398952661,1766017849531,-151.0,0.00039,120]
[398952662,1766017849540,-151.0,0.00039,120]
[398952663,1766017849549,-151.0,0.00039,120]
[398952664,1766017849558,-151.0,0.00039,120]
[398952665,1766017849567,-151.0,0.00039,120]
[398952666,1766017849576,-268.83,0.00039,30]
[398952667,1766017849585,-836.790489,0.00039,120]
[398952668,1766017849594,-836.790489,0.00039,120]
[398952669,1766017849603,-836.790489,0.00039,120]
[398952670,1766017849612,-836.790489,0.00039,120]
[398952671,1766017849621,-167.03048,0.00039,120]
[398952672,1766017849630,-151.0,0.00039,120]
[398952673,1766017849639,-151.0,0.00039,120]
[398952674,1766017849648,-701.832914,0.00039,120]
[398952675,1766017849657,-151.0,0.00039,120]
[398952676,1766017849667,-701.832914,0.00039,120]
[398952677,1766017849676,-701.832914,0.00039,120]
[398952678,1766017849685,-701.832914,0.00039,120]
[398952679,1766017849694,-151.0,0.00039,120]
[398952680,1766017849703,-151.0,0.00039,120]
[398952681,1766017849711,-304.338648,0.00039,120]
[398952682,1766017849721,-304.338648,0.00039,120]
[398952683,1766017849731,-304.338648,0.00039,120]
[398952684,1766017849740,-151.0,0.00039,120]
[398952685,1766017849749,-174.625935,0.00039,120]
[398952686,1766017849758,-304.338648,0.00039,120]
[398952687,1766017849767,-210.125317,0.00039,15]
[398952688,1766017849776,-151.0,0.00039,120]
[398952689,1766017849785,-174.625935,0.00039,120]
[398952690,1766017849795,-210.125317,0.00039,15]
[398952691,1766017849805,-174.625935,0.00039,120]
[398952692,1766017849814,-174.625935,0.00039,120]
[398952693,1766017849823,-210.125317,0.00039,15]
[398952694,1766017849833,-210.125317,0.00039,15]
[398952695,1766017849843,-151.0,0.00039,90]
[398952696,1766017849853,-151.0,0.00039,90]
[398952697,1766017849862,-151.0,0.00039,90]
[398952698,1766017849871,-156.313892,0.00039,120]
[398952699,1766017849880,-156.313892,0.00039,120]
[398952700,1766017849892,-156.313892,0.00039,120]
[398952701,1766017849903,-156.313892,0.00039,120]
[398952702,1766017849912,-218.756627,0.00039,120]
[398952703,1766017849921,-218.756627,0.00039,120]
[398952704,1766017849930,-218.756627,0.00039,120]
[398952705,1766017849939,-218.756627,0.00039,120]
[398952706,1766017849948,-151.0,0.00039,120]
[398952707,1766017849957,-151.0,0.00039,120]
[398952708,1766017849967,-151.0,0.00039,120]
[398952709,1766017849976,-151.0,0.00039,120]
[398952710,1766017849985,-151.0,0.00039,120]
[398952711,1766017849994,-151.0,0.00039,120]
[398952712,1766017850003,-151.0,0.00039,120]
[398952713,1766017850012,-286.360677,0.00039,120]
[398952714,1766017850022,-151.0,0.00039,120]
[398952715,1766017850032,-286.360677,0.00039,120]
[398952716,1766017850042,-151.0,0.00039,120]
[398952717,1766017850052,-286.360677,0.00039,120]
[398952718,1766017850062,-286.360677,0.00039,120]
[398952719,1766017850072,-151.0,0.00039,120]
[398952720,1766017850081,-203.565372,0.00039,120]
[398952721,1766017850090,-312.158753,0.00039,120]
[398952722,1766017850102,-151.0,0.00039,60]
[398952723,1766017850112,-312.158753,0.00039,120]
[398952724,1766017850121,-151.0,0.00039,60]
[398952725,1766017850130,-312.158753,0.00039,120]
[398952726,1766017850140,-312.158753,0.00039,120]
[398952727,1766017850150,-229.047682,0.00039,120]
[398952728,1766017850159,-151.0,0.00039,120]
[398952729,1766017850168,-151.0,0.00039,120]
[398952730,1766017850179,-151.0,0.00039,120]
[398952731,1766017850188,-151.0,0.00039,120]
[398952732,1766017850197,-151.0,0.00039,120]
[398952733,1766017850207,-280.024742,0.00039,120]
[398952734,1766017850216,-189.206454,0.00039,120]
[398952735,1766017850225,-254.815247,0.00039,120]
[398952736,1766017850234,-254.815247,0.00039,120]
[398952737,1766017850245,-168.247371,0.00039,120]
[398952738,1766017850256,-254.815247,0.00039,120]
[398952739,1766017850265,-168.247371,0.00039,120]
[398952740,1766017850275,-254.815247,0.00039,120]
[398952741,1766017850284,-168.247371,0.00039,120]
[398952742,1766017850293,-151.0,0.00039,120]
[398952743,1766017850304,-168.247371,0.00039,120]
[398952744,1766017850316,-167.84484,0.00039,120]
[398952745,1766017850324,-167.84484,0.00039,120]
[398952746,1766017850334,-151.0,0.00039,120]
[398952747,1766017850343,-167.84484,0.00039,120]
[398952748,1766017850352,-447.719211,0.00039,120]
[398952749,1766017850361,-151.0,0.00039,120]
[398952750,1766017850371,-286.481452,0.00039,120]
[398952751,1766017850380,-447.719211,0.00039,120]
[398952752,1766017850389,-167.84484,0.00039,120]
[398952753,1766017850398,-308.29877,0.00039,120]
[398952754,1766017850407,-181.977391,0.00039,120]
[398952755,1766017850416,-286.481452,0.00039,120]
[398952756,1766017850426,-447.719211,0.00039,120]
[398952757,1766017850435,-308.29877,0.00039,120]
[398952758,1766017850444,-181.977391,0.00039,120]
[398952759,1766017850454,-286.481452,0.00039,120]
[398952760,1766017850463,-447.719211,0.00039,120]
[398952761,1766017850472,-563.387032,0.00039,120]
[398952762,1766017850481,-308.29877,0.00039,120]
[398952763,1766017850489,-181.977391,0.00039,120]
[398952764,1766017850498,-286.481452,0.00039,120]
[398952765,1766017850507,-308.29877,0.00039,120]
[398952766,1766017850517,-181.977391,0.00039,120]
[398952767,1766017850527,-351.257875,0.00039,120]
[398952768,1766017850536,-563.387032,0.00039,120]
[398952769,1766017850546,-151.0,0.00039,120]
[398952770,1766017850555,-563.387032,0.00039,120]
[398952771,1766017850565,-351.257875,0.00039,120]
[398952772,1766017850574,-151.0,0.00039,120]
[398952773,1766017850583,-302.393458,0.00039,120]
[398952774,1766017850592,-563.387032,0.00039,120]
[398952775,1766017850602,-351.257875,0.00039,120]
[398952776,1766017850612,-302.393458,0.00039,120]
[398952777,1766017850622,-351.257875,0.00039,120]
[398952778,1766017850632,-302.393458,0.00039,120]
[398952779,1766017850640,-302.393458,0.00039,120]
[398952780,1766017850649,-151.0,0.00039,120]
[398952781,1766017850659,-151.0,0.00039,120]
[398952782,1766017850669,-151.0,0.00039,120]
[398952783,1766017850679,-151.0,0.00039,30]
[398952784,1766017850688,-151.0,0.00039,120]
[398952785,1766017850697,-178.786716,0.00039,120]
[398952786,1766017850707,-162.590709,0.00039,120]
[398952787,1766017850716,-162.590709,0.00039,120]
[398952788,1766017850726,-162.590709,0.00039,120]
[398952789,1766017850735,-162.590709,0.00039,120]
[398952790,1766017850744,-151.0,0.00039,120]
[398952791,1766017850754,-151.0,0.00039,120]
[398952792,1766017850763,-151.0,0.00039,120]
[398952793,1766017850772,-151.0,0.00039,120]
[398952794,1766017850787,-151.0,0.00039,120]
[398952795,1766017850796,-170.417071,0.00039,120]
[398952796,1766017850805,-170.417071,0.00039,120]
[398952797,1766017850815,-170.417071,0.00039,120]
[398952798,1766017850824,-170.417071,0.00039,120]
[398952799,1766017850833,-213.191583,0.00039,120]
[398952800,1766017850843,-151.0,0.00039,120]
[398952801,1766017850852,-213.191583,0.00039,120]
[398952802,1766017850861,-151.0,0.00039,120]
[398952803,1766017850871,-213.191583,0.00039,120]
[398952804,1766017850881,-213.191583,0.00039,120]
[398952805,1766017850891,-877.636823,0.00039,120]
[398952806,1766017850900,-165.579034,0.00039,120]
[398952807,1766017850909,-877.636823,0.00039,120]
[398952808,1766017850919,-165.579034,0.00039,120]
[398952809,1766017850928,-151.0,0.00039,120]
[398952810,1766017850938,-403.095798,0.00039,120]
[398952811,1766017850948,-877.636823,0.00039,120]
[398952812,1766017850957,-165.579034,0.00039,120]
[398952813,1766017850968,-151.0,0.00039,120]
[398952814,1766017850977,-403.095798,0.00039,120]
[398952815,1766017850987,-877.636823,0.00039,120]
[398952816,1766017850997,-165.579034,0.00039,120]
[398952817,1766017851006,-403.095798,0.00039,120]
[398952818,1766017851015,-151.0,0.00039,120]
[398952819,1766017851025,-403.095798,0.00039,120]
[398952820,1766017851034,-151.0,0.00039,120]
[398952821,1766017851043,-151.0,0.00039,120]
[398952822,1766017851053,-151.0,0.00039,120]
[398952823,1766017851062,-1084.908871,0.00039,120]
[398952824,1766017851071,-4903.871294,0.00039,120]
[398952825,1766017851081,-1084.908871,0.00039,120]
[398952826,1766017851091,-436.395957,0.00039,120]
[398952827,1766017851105,-4903.871294,0.00039,120]
[398952828,1766017851114,-150.0,0.00039002,7]
[398952829,1766017851124,-150.0,0.00039033,7]
[398952830,1766017851134,-150.0,0.00039091,7]
[398952831,1766017851145,-150.0,0.00039144,7]
[398952832,1766017851154,-150.0,0.00039144,7]
[398952833,1766017851164,-150.0,0.00039144,7]
[398952834,1766017851174,-927.58,0.00039162,120]
[398952835,1766017851183,-2000.0,0.000392,2]
[398952836,1766017851193,-150.0,0.00039218,7]
[398952837,1766017851202,-193.71,0.000393,30]
[398952838,1766017851211,-150.0,0.00039357,7]
[398952839,1766017851220,-150.0,0.00039403,7]
[398952840,1766017851230,-4565.88,0.00039452,120]
[398952841,1766017851239,-150.0,0.0003957,7]
[398952842,1766017851248,-150.0,0.0003957,7]
[398952843,1766017851257,-150.0,0.00039588,7]
[398952844,1766017851266,-171.04,0.000396,14]
[398952845,1766017851275,-416.99,0.000396,14]
[398952846,1766017851285,-150.0,0.00039623,7]
[398952847,1766017851294,-828.02,0.00039654,2]
[398952848,1766017851303,-150.0,0.00039711,7]
[398952849,1766017851313,-150.0,0.00039711,7]
[398952850,1766017851323,-150.0,0.00039773,7]
[398952851,1766017851332,-150.0,0.00039792,2]
[398952852,1766017851341,-150.0,0.00039889,7]
[398952853,1766017851351,-1699.0,0.00039889,30]
[398952854,1766017851360,-150.0,0.00039958,7]
[398952855,1766017851370,-1632.103,0.00039974,56]
[398952856,1766017851379,-150.0,0.00039995,7]
[398952857,1766017851388,-150.0,0.00039995,7]
[398952858,1766017851398,-150.0,0.00039995,7]
[398952859,1766017851407,-90303.6631301,0.0004,120]
[398952860,1766017851416,-150.0,0.0004,120]
[398952861,1766017851425,-1000.0,0.0004,30]
[398952862,1766017851435,-500.0,0.0004011,2]
[398952863,1766017851444,-153.0,0.0004012,120]
[398952864,1766017851454,-153.0,0.0004012,120]
[398952865,1766017851463,-153.0,0.0004012,120]
[398952866,1766017851472,-153.0,0.0004012,120]
[398952867,1766017851482,-153.0,0.0004012,120]
[398952868,1766017851492,-153.0,0.0004012,120]
[398952869,1766017851502,-153.0,0.0004012,120]
[398952870,1766017851512,-153.0,0.0004012,120]
[398952871,1766017851521,-153.0,0.0004012,120]
[398952872,1766017851530,-153.0,0.00040124,120]
[398952873,1766017851539,-153.0,0.00040124,120]
[398952874,1766017851548,-153.0,0.00040124,120]
[398952875,1766017851557,-153.0,0.00040124,120]
[398952876,1766017851567,-153.0,0.00040124,120]
[398952877,1766017851576,-153.0,0.00040124,120]
[398952878,1766017851585,-153.0,0.00040124,120]
[398952879,1766017851594,-153.0,0.00040124,120]
[398952880,1766017851605,-153.0,0.00040124,120]
[398952881,1766017851615,-153.0,0.00040124,120]
[398952882,1766017851624,-153.0,0.00040124,120]
[398952883,1766017851634,-153.0,0.00040124,120]
[398952884,1766017851643,-153.0,0.00040124,120]
[398952885,1766017851652,-153.0,0.00040124,120]
[398952886,1766017851661,-153.0,0.00040124,120]
[398952887,1766017851670,-153.0,0.00040129,120]
[398952888,1766017851680,-153.0,0.00040129,120]
[398952889,1766017851689,-153.0,0.00040129,120]
[398952890,1766017851698,-153.0,0.00040129,120]
[398952891,1766017851707,-153.0,0.00040129,120]
[398952892,1766017851716,-153.0,0.00040134,120]
[398952893,1766017851725,-153.0,0.00040134,120]
[398952894,1766017851735,-153.0,0.00040134,120]
[398952895,1766017851744,-153.0,0.00040134,120]
[398952896,1766017851753,-150.0,0.00040143,7]
[398952897,1766017851763,-150.0,0.00040155,7]
[398952898,1766017851772,-1699.0,0.000403,30]
[398952899,1766017851781,-150.0,0.00040328,7]
[398952900,1766017851790,-1000.0,0.00040365,14]
[398952901,1766017851799,-3357.06,0.000404,14]
[398952902,1766017851808,-150.0,0.00040421,7]
[398952903,1766017851817,-150.0,0.00040421,7]
[398952904,1766017851826,-150.0,0.00040421,7]
[398952905,1766017851836,-150.0,0.00040421,7]
[398952906,1766017851845,-150.0,0.00040421,7]
[398952907,1766017851854,-150.0,0.00040421,7]
[398952908,1766017851863,-150.0,0.00040513,7]
[398952909,1766017851873,-4565.88,0.00040547,120]
[398952910,1766017851883,-150.0,0.00040686,7]
[398952911,1766017851892,-150.0,0.00040698,7]
[398952912,1766017851901,-1699.0,0.00040712,30]
[398952913,1766017851910,-749.13,0.00040761,2]
[398952914,1766017851919,-658.77,0.00040761,2]
[398952915,1766017851928,-658.77,0.00040761,2]
[398952916,1766017851938,-150.0,0.00040846,7]
[398952917,1766017851948,-150.0,0.00040846,7]
[398952918,1766017851957,-150.0,0.00040846,7]
[398952919,1766017851967,-150.0,0.00040883,7]
[398952920,1766017851976,-150.0,0.00040952,7]
[398952921,1766017851986,-150.0,0.00041,120]
[398952922,1766017851995,-194.0,0.00041,60]
[398952923,1766017852004,-1347.8,0.00041041,7]
[398952924,1766017852014,-300.0,0.00041068,22]
[398952925,1766017852023,-150.0,0.00041068,7]
[398952926,1766017852033,-500.0,0.00041095,60]
[398952927,1766017852043,-204.97073059,0.00041095,120]
[398952928,1766017852052,-500.0,0.00041095,120]
[398952929,1766017852062,-500.0,0.00041095,120]
[398952930,1766017852071,-500.0,0.00041095,120]
[398952931,1766017852080,-500.0,0.00041095,120]
[398952932,1766017852090,-500.0,0.00041095,120]
[398952933,1766017852099,-500.0,0.00041095,120]
[398952934,1766017852110,-500.0,0.00041095,120]
[398952935,1766017852120,-500.0,0.00041095,120]
[398952936,1766017852129,-497.47364541,0.00041095,120]
[398952937,1766017852138,-176.65281924,0.00041095,120]
[398952938,1766017852148,-500.0,0.00041095,120]
[398952939,1766017852158,-178.13021248,0.00041095,120]
[398952940,1766017852167,-500.0,0.00041095,120]
[398952941,1766017852178,-500.0,0.00041095,120]
[398952942,1766017852188,-500.0,0.00041095,120]
[398952943,1766017852198,-500.0,0.00041095,120]
[398952944,1766017852208,-500.0,0.00041095,120]
[398952945,1766017852219,-500.0,0.00041095,120]
[398952946,1766017852230,-500.0,0.00041095,120]
[398952947,1766017852241,-500.0,0.00041095,120]
[398952948,1766017852253,-500.0,0.00041095,120]
[398952949,1766017852262,-500.0,0.00041095,120]
[398952950,1766017852273,-500.0,0.00041095,120]
[398952951,1766017852283,-500.0,0.00041095,120]
[398952952,1766017852293,-500.0,0.00041095,120]
[398952953,1766017852304,-500.0,0.00041095,120]
[398952954,1766017852314,-500.0,0.00041095,120]
[398952955,1766017852323,-500.0,0.00041095,120]
[398952956,1766017852332,-500.0,0.00041095,120]
[398952957,1766017852342,-500.0,0.00041095,120]
[398952958,1766017852351,-500.0,0.00041095,120]
[398952959,1766017852360,-500.0,0.00041095,120]
[398952960,1766017852369,-500.0,0.00041095,120]
[398952961,1766017852378,-500.0,0.00041095,120]
[398952962,1766017852387,-500.0,0.00041095,120]
[398952963,1766017852396,-500.0,0.00041095,120]
[398952964,1766017852405,-500.0,0.00041095,120]
[398952965,1766017852414,-500.0,0.00041095,120]
[398952966,1766017852423,-500.0,0.00041095,120]
[398952967,1766017852433,-500.0,0.00041095,120]
[398952968,1766017852442,-500.0,0.00041095,120]
[398952969,1766017852451,-500.0,0.00041095,120]
[398952970,1766017852462,-500.0,0.00041095,120]
[398952971,1766017852474,-500.0,0.00041095,120]
[398952972,1766017852486,-500.0,0.00041095,120]
[398952973,1766017852497,-500.0,0.00041095,120]
[398952974,1766017852507,-500.0,0.00041095,120]
[398952975,1766017852518,-500.0,0.00041095,120]
[398952976,1766017852528,-500.0,0.00041095,120]
[398952977,1766017852539,-500.0,0.00041095,120]
[398952978,1766017852549,-500.0,0.00041095,120]
[398952979,1766017852559,-500.0,0.00041095,120]
[398952980,1766017852568,-500.0,0.00041095,120]
[398952981,1766017852577,-230.95859428,0.00041095,120]
[398952982,1766017852586,-500.0,0.00041095,120]
[398952983,1766017852595,-500.0,0.00041095,120]
[398952984,1766017852604,-500.0,0.00041095,120]
[398952985,1766017852613,-500.0,0.00041095,120]
[398952986,1766017852622,-500.0,0.00041095,120]
[398952987,1766017852631,-500.0,0.00041095,120]
[398952988,1766017852640,-500.0,0.00041095,120]
[398952989,1766017852650,-500.0,0.00041095,120]
[398952990,1766017852659,-500.0,0.00041095,120]
[398952991,1766017852668,-500.0,0.00041095,120]
[398952992,1766017852677,-510.50488523,0.00041095,120]
[398952993,1766017852687,-500.0,0.00041095,120]
[398952994,1766017852696,-500.0,0.00041095,120]
[398952995,1766017852705,-500.0,0.00041095,120]
[398952996,1766017852715,-500.0,0.00041095,120]
[398952997,1766017852724,-500.0,0.00041095,120]
[398952998,1766017852733,-500.0,0.00041095,120]
[398952999,1766017852743,-500.0,0.00041095,120]
[398953000,1766017852752,-235.15281953,0.00041095,120]
[398953001,1766017852762,-500.0,0.00041095,120]
[398953002,1766017852772,-500.0,0.00041095,120]
[398953003,1766017852781,-500.0,0.00041095,120]
[398953004,1766017852791,-500.0,0.00041095,120]
[398953005,1766017852800,-500.0,0.00041095,120]
[398953006,1766017852810,-500.0,0.00041095,120]
[398953007,1766017852819,-417.18274839,0.00041095,120]
[398953008,1766017852828,-500.0,0.00041095,120]
[398953009,1766017852837,-266.03891431,0.00041095,120]
[398953010,1766017852847,-398.4802519,0.00041095,120]